Cogmind - Beta 15 @@@ ROGUE MODE // 2025.09.29 @ 02:50:16 Player: souux Result: Destroyed by D-53 Grenadier with Mini Grenade Launcher Performance ------------- Evolutions (0) 0 Regions Visited (2) 400 Robots Destroyed (23) 115 Value Destroyed (467) 467 Prototype IDs (0) 0 Alien Tech Used (0) 0 Bonus (0) 0 TOTAL SCORE: 982 Bonus ------- None Cogmind --------- Core Integrity 0/250 Matter 146/300 Energy 160/160 System Corruption 1% Temperature Cool (0) Movement Rolling (140) Ox4 Location -10/Mines Parts ------- > --- POWER (1) -------- Light Nuclear Core > --- PROPULSION (2) --- Wheel > --- UTILITY (2) ------ High-capacity Storage Unit Signal Interpreter > --- WEAPON (2) ------- Medium Laser Particle Gun > --- INVENTORY (20) --- Ion Engine Aluminum Leg Aluminum Leg Improved Heat Sink Improved Terrain Scanner Improved Terrain Scanner Hacking Suite Medium Laser Grenade Launcher Peak State ------------ > --- POWER ------------ Light Nuclear Core > --- PROPULSION ------- Wheel Compact Wheel > --- UTILITY ---------- High-capacity Storage Unit Signal Interpreter > --- WEAPON ----------- Assault Rifle Assault Rifle > --- INVENTORY -------- Ion Engine Aluminum Leg Aluminum Leg Wheel Wheel Improved Heat Sink Improved Terrain Scanner Improved Terrain Scanner Hacking Suite Medium Laser Medium Laser Medium Laser Grenade Launcher [Rating: 11] Favorites ----------- Power Ion Engine Engine Ion Engine Power Core Light Nuclear Core Propulsion Light Treads Treads Light Treads Leg Aluminum Leg Wheel Wheel Utility High-capacity Storage Unit Storage High-capacity Storage Unit Processor Signal Interpreter Weapon Assault Rifle Energy Gun EM Pulse Gun Ballistic Gun Assault Rifle Launcher Grenade Launcher Build | -11 -10 -10 ------- Run | Yrd Mat Min Slots Evolved . | . . . Power . | . . . Propulsion . | . . . Utility . | . . . Weapon . | . . . Parts Attached 28 | 8 13 7 Power 3 | 1 . 2 Engine 1 | 1 . . Core 2 | . . 2 Reactor . | . . . Propulsion 10 | 4 3 3 Treads 2 | . 2 . Leg 2 | 2 . . Wheel 6 | 2 1 3 Hover . | . . . Flight . | . . . Utility 5 | 1 4 . Device . | . . . Storage 3 | 1 2 . Processor 2 | . 2 . Hackware . | . . . Protection . | . . . Artifact . | . . . Weapon 10 | 2 6 2 Energy Gun 6 | 1 3 2 Energy Cannon . | . . . Ballistic Gun 3 | 1 2 . Ballistic Cannon . | . . . Launcher 1 | . 1 . Special Weapon . | . . . Impact Weapon . | . . . Slashing Weapon . | . . . Piercing Weapon . | . . . Special Melee Weapon . | . . . Unidentified Prototypes . | . . . Parts Lost 10 | . 2 8 Power 2 | . . 2 Propulsion 5 | . 1 4 Utility . | . . . Weapon 3 | . 1 2 Highest Loss Streak 5 | . 1 5 To Critical Strikes . | . . . Average Backups 10 | 5 10 11 Power 1 | . 1 1 Propulsion 4 | 3 4 3 Utility 1 | . 1 3 Weapon 3 | 1 3 3 Tool/Special . | . . . Unused Backups 6 | . 1 5 Power 2 | . 1 1 Propulsion . | . . . Utility 4 | . . 4 Weapon . | . . . Tool/Special . | . . . Average Slot Usage (%) 96 | . 96 98 Engine 11 | . 14 4 Core 2 | . . 7 Treads 15 | . 16 12 Wheel 12 | . 11 14 Storage 14 | . 14 14 Processor 11 | . 10 14 Energy Gun 15 | . 17 13 Ballistic Gun 10 | . 10 8 Launcher 1 | . . 6 Peak Build Rating 11 | 6 9 11 Average Rating 8 | 4 7 9 On Entrance 4 | . 6 8 Naked Turns . | . . . Heaviest Build 50 | 13 50 50 Greatest Support 40 | 26 40 40 Greatest Overweight (x) 2 | . 1 2 Average Overweight (x) 1 | . . 1 Largest Inventory Capacity 20 | 8 20 20 Average Capacity 19 | 7 19 20 Most Carried 13 | 8 13 13 Average Carried 10 | 5 10 11 Final Capacity 20 | 8 20 20 Final Carried 13 | 7 13 9 Class Distribution -------------------- 100% | Mutant Dominant Class ---------------- Mutant | -10/Materials Mutant | -10/Mines Resources | -11 -10 -10 ----------- Run | Yrd Mat Min Matter Collected 870 | 291 318 261 Remotely . | . . . Salvage Created 604 | 54 380 170 Parts 46 | 2 39 5 Haulers Intercepted . | . . . Recyclers Shooed . | . . . Parts Field Recycled . | . . . Retrieved Matter . | . . . Parts Self-Destructed . | . . . Prevented . | . . . Kills | -11 -10 -10 ------- Run | Yrd Mat Min Combat Hostiles Destroyed 34 | . 15 19 Guns 15 | . 10 5 AOE 18 | . 5 13 Classes Destroyed 6 | 1 4 1 Worker 1 | . 1 . Recycler 1 | 1 . . Operator 2 | . 2 . Swarmer 11 | . 9 2 Grunt 8 | . 6 2 Assembled 15 | . . 15 Best Kill Streak 9 | 1 7 9 Combat Bots Only 9 | . 6 9 Max Kills in Single Turn 3 | 1 3 2 Gunslinging . | . . . Exploded 3 | . 3 2 Melee . | . . . Uniques/NPCs Destroyed . | . . . Combat | -11 -10 -10 -------- Run | Yrd Mat Min Hostile Shots Fired 126 | . 62 64 Missed 26 | . 16 10 Hits 100 | . 46 54 Melee 4 | . . 4 Projectile 96 | . 46 50 AOE 1 | . . 1 Critical Strikes 2 | . . 2 Part Disruptions 1 | . . 1 Damage Taken 1410 | . 515 895 Core 272 | . 60 212 Absorbed by Shields . | . . . Core Remaining (%) 100 | 100 . . Volleys Fired 82 | 1 39 42 Largest 2 | 2 2 2 Hottest 115 | 60 90 115 Shots Fired 140 | 2 77 61 Gun 118 | 2 76 40 Cannon . | . . . Launcher 22 | . 1 21 Special . | . . . Kinetic 48 | 1 32 15 Thermal 40 | . 15 25 Explosive 22 | . 1 21 Electromagnetic 30 | 1 29 . Robot Hit Streak 8 | 1 8 6 Robot Miss Streak 3 | . 3 2 Penetration Max . | . . . Secondary Targets 4 | . 3 1 Max Gunslinging Chain 1 | . 1 1 Shots Hit Robots 77 | 1 46 30 Core Hits 65 | 1 25 39 Critical Kills . | . . . Critical Parts Destroyed . | . . . Critical Strikes 1 | . . 1 Burn 1 | . . 1 Melee Attacks . | . . . Impact . | . . . Slashing . | . . . Piercing . | . . . Sneak Attacks . | . . . Combat Hostiles . | . . . Follow-up Attacks . | . . . Damage Inflicted 2127 | 15 813 1299 Guns 932 | 15 580 337 Cannons . | . . . Explosions 1195 | . 233 962 Melee . | . . . Ramming . | . . . Kinetic 316 | . 203 113 Thermal 501 | . 277 224 Explosive 1059 | . 97 962 Electromagnetic 251 | 15 236 . Impact . | . . . Slashing . | . . . Piercing . | . . . Highest Corruption 1 | . 1 1 Average Corruption 1 | . 1 1 Corruption Purged . | . . . Corruption Blocked . | . . . Effects 15 | . 13 2 Message Errors 2 | . 2 . Matter Fused 4 | . 4 . Heat Flow Errors 2 | . 1 1 Energy Discharges 3 | . 2 1 Data Loss (minor) 2 | . 2 . Misfires 1 | . 1 . Alerts 1 | . 1 . Overload Shots . | . . . Overflow Damage 59 | . 24 35 Projectiles . | . . . Explosions 59 | . 24 35 Melee . | . . . Knockbacks . | . . . Impact . | . . . Kinetic . | . . . Secondary . | . . . Self-Inflicted Damage 103 | . 60 43 Shots 6 | . 2 4 Rammed . | . . . Targets Rammed . | . . . Kicked . | . . . Crushed . | . . . Highest Temperature 234 | 20 224 234 Average Temperature 66 | 15 68 65 Received Heat Transfer 616 | . 165 451 Effects 1 | . 1 . Interference 1 | . 1 . Siege Activations . | . . . Martial Activations . | . . . Shielding Activations . | . . . Robots Disrupted . | . . . Combat Hostiles . | . . . Robots Corrupted . | . . . Combat Hostiles . | . . . Parts Fried . | . . . Impact Corruptions . | . . . Robots Melted 1 | . . 1 Combat Hostiles 1 | . . 1 Parts Melted 2 | . . 2 Heat Transferred 1373 | . 670 703 Parts Sabotaged . | . . . Parts Stolen . | . . . Parts Stripped . | . . . Power Chain Reactions 2 | . 2 . Alert | -11 -10 -10 ------- Run | Yrd Mat Min Maximum Alert Level . | . . . Low Security (%) 100 | 100 100 100 Level 1 . | . . . Level 2 . | . . . Level 3 . | . . . Level 4 . | . . . Level 5 . | . . . High Security . | . . . Max Security . | . . . Peak Influence 161 | 5 161 60 Initial 16 | . . 16 Average 43 | . 58 8 Influence Increases 647 | 5 487 155 Destroy 0b10 Robot/C 380 | . 300 80 Destroy 0b10 Robot/NC 20 | 5 15 . Destroy Leader 90 | . 70 20 Successful Hack 42 | . 42 . Disable Machine 30 | . 30 . Destroy Structure 70 | . 15 55 Lose Combat Pursuer 15 | . 15 . Influence Decreases 647 | 5 444 198 Entered New Map 27 | . . 27 Time Decay 540 | 5 414 121 Lost Part 70 | . 20 50 Lost Ally 10 | . 10 . Squads Dispatched 3 | . 3 . Investigation 1 | . 1 . Extermination . | . . . Reinforcement 2 | . 2 . Assault . | . . . Garrison . | . . . Intercept . | . . . Searches Triggered . | . . . Construction Impeded . | . . . Haulers Reinforced . | . . . Active Scanning Responses . | . . . Cargo Convoy Interrupts . | . . . Stealth | -11 -10 -10 --------- Run | Yrd Mat Min Distress Signals 3 | . 2 1 Communications Jammed . | . . . Distress Signals . | . . . Times Spotted 49 | . 26 23 Peak Tracking Total 6 | . 6 4 Tactical Retreats 2 | . 1 1 Traps | -11 -10 -10 ------- Run | Yrd Mat Min Traps Triggered 1 | . 1 . Indirectly . | . . . Trap Hack Attempts . | . . . Triggered . | . . . Disarmed . | . . . Reprogrammed . | . . . Reused . | . . . Traps Extracted . | . . . Installed . | . . . Triggered . | . . . Machines | -11 -10 -10 ---------- Run | Yrd Mat Min Machines Disabled 2 | . 2 . Max in Single Turn 1 | . 1 . Machines Repaired . | . . . Machines Dismantled . | . . . Machines Sabotaged . | . . . Overloaded Fab Kills . | . . . Hacking | -11 -10 -10 --------- Run | Yrd Mat Min Machines Accessed 7 | . 7 . Terminals 7 | . 7 . Fabricators . | . . . Repair Stations . | . . . Recycling Units . | . . . Scanalyzers . | . . . Garrison Access . | . . . Total Hacks 20 | . 20 . Successful 12 | . 12 . Failed 8 | . 8 . Catastrophic 1 | . 1 . Database Lockouts . | . . . Manual 19 | . 19 . Terminals 20 | . 20 . Fabricators . | . . . Repair Stations . | . . . Recycling Units . | . . . Scanalyzers . | . . . Garrison Access . | . . . Terminal Hacks 3 | . 3 . Part Schematic 1 | . 1 . Alert Level 2 | . 2 . Fabricator Hacks . | . . . Repair Station Hacks . | . . . Recycling Unit Hacks . | . . . Scanalyzer . | . . . Garrison Access Hacks . | . . . Unauthorized Hacks 9 | . 9 . Terminals 9 | . 9 . Assimilate 1 | . 1 . Botnet 7 | . 7 . Operators 1 | . 1 . Fabricators . | . . . Repair Stations . | . . . Recycling Units . | . . . Scanalyzers . | . . . Garrison Access . | . . . Data Cores Recovered . | . . . Used . | . . . Hacking Detections 4 | . 4 . Full Trace Events 2 | . 2 . Feedback Events . | . . . Feedback Blocked . | . . . Robot Schematics Acquired . | . . . Robots Built . | . . . Authchips . | . . . Time . | . . . Total Robot Build Rating . | . . . Part Schematics Acquired 1 | . 1 . Parts Built . | . . . Authchips . | . . . Time . | . . . Total Part Build Rating . | . . . Parts Repaired . | . . . Time . | . . . Parts Recycled . | . . . Recycled Matter . | . . . Retrieved Matter . | . . . Retrieved Components . | . . . Parts Scanalyzed . | . . . Part Schematics Acquired . | . . . Parts Damaged . | . . . Bothacking | -11 -10 -10 ------------ Run | Yrd Mat Min Used RIF Installer . | . . . Robots Hacked . | . . . Non-combat . | . . . Combat . | . . . Robot Hacks Applied . | . . . Relay Couplers Released . | . . . Fabnet Peak Effective % . | . . . Robots Rewired . | . . . Allies Hacked . | . . . Hacks Repelled . | . . . Allies | -11 -10 -10 -------- Run | Yrd Mat Min Total Allies 1 | . 1 . Largest Group 1 | . 1 . Highest-Rated Group 10 | . 10 . Highest-Rated Ally 10 | . 10 . Total Orders 2 | . 2 . STAY 1 | . 1 . FOLLOW 1 | . 1 . Ally Attacks . | . . . Total Damage . | . . . Kills . | . . . Allies Corrupted . | . . . Allies Melted . | . . . Intel | -11 -10 -10 ------- Run | Yrd Mat Min Active Infowar (turns) . | . . . Robot Analysis Total . | . . . Derelict Logs Recovered . | . . . Drone Launches . | . . . Drone Recoveries . | . . . Exploration | -11 -10 -10 ------------- Run | Yrd Mat Min Turns Passed 2222 | 78 1551 593 Spaces Moved 1025 | 56 764 205 Core 13 | 13 . . Treads 412 | . 329 83 Legs 23 | 23 . . Wheels 577 | 20 435 122 Hover . | . . . Flight . | . . . Fastest Speed 50 | 50 90 105 Average Speed 158 | 93 162 162 Slowest Speed 240 | 120 240 240 Overloaded Moves . | . . . Propulsion Burnouts . | . . . Robots Hopped . | . . . Potential Cave-ins . | . . . Cave-ins Triggered . | . . . Exploration Rate (%) 45 | 4 96 37 Regions Visited 2 Branch Regions 1 Pre-discovered Areas . | . . . Known Exits Taken 1 | . 1 . Unknown Exits Taken 1 | 1 . . Scrap Searched . | . . . Spaces Dug 7 | . . 7 Terrain Destroyed 107 | . 14 93 Melee . | . . . Projectile . | . . . AOE 107 | . 14 93 Terrain Rammed . | . . . Walls Destroyed . | . . . Machines Disabled . | . . . Actions | -11 -10 -10 --------- Run | Yrd Mat Min Total 1474 | 76 998 400 Wait 281 | 2 155 124 Move 1023 | 55 763 205 Hop . | . . . Pick Up 30 | 9 15 6 Fast Attach 5 | 4 1 . Attach 16 | 2 5 9 Detach . | . . . Swap 27 | 3 13 11 Drop 10 | . 7 3 Fire 82 | 1 39 42 Melee . | . . . Ram . | . . . Kick . | . . . Crush . | . . . Escape Stasis . | . . . Rewire . | . . . Trap . | . . . Miscellaneous . | . . . Route ------- -11/Scrapyard -10/Materials (discovered 5 exits: *Mat x3 / *Min x2) -10/Mines History --------- Turn | Location | Event 19 | -11/Scrapyard | Discovered new exit (range 16) 79 | -11/Scrapyard | Entered Materials 315 | -10/Materials | Build established: Mutant 465 | -10/Materials | Discovered new exit (range 14) 607 | -10/Materials | Discovered new exit (range 11) 631 | -10/Materials | Identified exit to Mines 785 | -10/Materials | Discovered exit to Mines (range 7) 1143 | -10/Materials | Discovered new exit (range 5) 1150 | -10/Materials | Identified exit to Materials 1319 | -10/Materials | Discovered exit to Materials (range 3) 1630 | -10/Materials | Entered Mines 1642 | -10/Mines | Met a Derelict bent on vengeance 1731 | -10/Mines | Assembled infested the area 1736 | -10/Mines | Assisted by a Guerilla fighting off Assembled 1917 | -10/Mines | Destroyed 9 combat bots 1942 | -10/Mines | Core integrity fell below 50% 1964 | -10/Mines | Core integrity fell below 20% 1976 | -10/Mines | Lost 5 parts (1p2n2w) 2223 | -10/Mines | Destroyed by D-53 Grenadier with Mini Grenade Launcher Last Messages --------------- 01990_ The unstable cave ceiling collapses. 01991_ Acquired 38 matter. 01997_ The unstable cave ceiling collapses. 02000_ Acquired 14 matter. 02007_ The unstable cave ceiling collapses. 02007_ Dropped Med. Laser. 02020_ as-35800 destroyed. [Achievement: Exterminator] 02023_ Acquired 16 matter. 02194_ U-05 Engineer lays Concrete. 02201_ The unstable cave ceiling collapses. 02201_ Acquired 7 matter. 02201_ U-05 Engineer lays Concrete. 02212_ U-05 Engineer builds a Wall. 02220_ U-05 Engineer lays Concrete. 02220_ Acquired 4 matter. 02222_ U-05 Engineer lays Concrete. 02222_ Acquired 6 matter. 02223_ U-05 Engineer builds a Wall. 02223_ Wheel destroyed. Map ----- +----------------------------------------------------+ | ????????????????????????????# #?# #?? #???? | | ????????????????????????????## ##?# #?# #???? | | ?????????????????????????????#####??# ## #???? | | ????????????????????????????????????# #???? | | ????????????????????????????????????# #???? | | ???????????????????????????????????## ##???? | | ???????????????????????????????????# #????? | | ???????????????????????????????????# ##????? | | ???????????????????????????????????# ####?????? | | ???????????????????????????????????# ##????????? | | ???????????????????????????????????# ##????????? | | ???????????????????????????????????# ##???????? | | ???????????????????????????????????# ##??????? | | ???????????????????????????????????## #??????? | | ?????????????????? ?????????????????## #??????? | | ?????????????????? ???????????????## ##??????? | | ??????????????????? ????????????#### ##???????? | | ??????????????????? ??????????## #????????? | | ???????????????????? ??????????# #????????? | | ???????????????????? ????####?# ##????????? | | ????????????????????? ???## ### # ##???????? | | ?????????????????????# ??## ## # #???????? | | ?????????????????????# ?# ## ## #???????? | | ?????????????????????# ?# ## # #???????? | | ?????????????????????# ## ## #???????? | | ?????????????????????# @ # ####???????? | | ?????????????????????# ####????????? | | ?????????????????????#### # ###??????? | | ???###################### # #??????? | | ???# #### d ## #??????? | | ???# ######################??# # ## #??????? | | ???# #???????????????????????# ud ### #??? | | ???# #####???????????????????# # # #?? | | ???# #???????????????????# # ??? | | ??# #??????????????????## # # ??? | | ?# #???????????????????# ## # # ??? | | ?# ##???????????????????###?# # ## ??? | | ?## ##????????????????????????? #??????? | | ??#######?????????????????????????? #???????? | | ???????????????????????????????????? ? #???????? | | ????????????????????????????????????? ? ?????????? | | ?????????????????????????????????????????????????? | | ?????????????????????????????????????????????????? | | | | | | | | | | | | | | | +----------------------------------------------------+ Best States ------------- Heat Dissipation 25 Energy Generation 14 Energy Capacity 250 Matter Stores 300 Matter Capacity 300 Sight Range 16 Terrain Scan Density 10 Evasion (%) 50 Targeting Accuracy 5 Recoil Reduction 2 Item Schematics ----------------- Lgt. Treads | -10/Materials | Hacked Robot Schematics ------------------ None Fabricated ------------ Nothing Repaired ---------- Nothing Alien Tech Used ----------------- None Achievements -------------- Exterminator Challenges ------------ None Game ------ Seed SystemDispersionWings Manual? 0 Play Time 00:29:31 Cumulative 26.2 hours Start 2025.09.29 @ 01:58:08 End 2025.09.29 @ 02:50:16 Sessions 1 Manual Loads 0 Difficulty Rogue Special Mode None Game No. 30 Rogue 30 Adventurer 0 Explorer 0 Win Type - Total 0 Types 0/0/0/0/0/0/0/0/0/0 Lore% 11 Gallery% 21 Achievement% 20 Wizard Run 0 Options --------- Layout 1 ASCII 0 Keyboard 0 Movement Mouse Keybinds 0 Fullscreen 2 Font 24/Smallcaps Map View 50x35 Zoom Use 0% Tactical HUD 1 Map Filters NONE Filters NONE Steam 1 RUN: 0f7c1170-2307-43e7-ad45-9609ce5238d4